Cogmind - Beta 17 @@@ ROGUE MODE // 2026.07.02 @ 22:11:04 Player: D4-RLM Result: Destroyed by X-62 Marksman with Pulse Rifle Performance ------------- Evolutions (2) 1000 Regions Visited (7) 1400 Robots Destroyed (51) 255 Value Destroyed (1067) 1067 Prototype IDs (26) 520 Alien Tech Used (0) 0 Bonus (334) 334 TOTAL SCORE: 4576 Bonus ------- Follower Combat Kills 74 Aligned with FarCom 300 Friendly Fire -40 Cogmind --------- Core Integrity 0/550 Matter 300/300 Energy 89/100 System Corruption 11% Temperature Cool (9) Movement Core (400) Ox7 Location -8/Materials Parts ------- > --- POWER (1) -------- (None) > --- PROPULSION (4) --- (None) > --- UTILITY (4) ------ Large Storage Unit ECM Suite > --- WEAPON (2) ------- (None) > --- INVENTORY (15) --- Cryofiber Web Cooling System Large Storage Unit Seismic Detector Improved Melee Analysis Suite Hardlight Generator Hacking Suite Hacking Suite YOLO Cannon Rocket Launcher Mining Laser Maul Spear Spear Peak State ------------ > --- POWER ------------ Deuterium Engine > --- PROPULSION ------- Light Treads Improved Treads Wheel Wheel > --- UTILITY ---------- Cooling System Large Storage Unit Improved Melee Analysis Suite ECM Suite > --- WEAPON ----------- Katana Spear > --- INVENTORY -------- Cryofiber Web Cooling System Large Storage Unit Seismic Detector Hardlight Generator Hacking Suite Hacking Suite Light EM Pulse Cannon YOLO Cannon Rocket Launcher Mining Laser Maul Spear Spear [Rating: 28] Favorites ----------- Power Deuterium Engine Engine Deuterium Engine Propulsion Wheel Treads Light Treads Leg Carbon-fiber Leg Wheel Wheel Utility Large Storage Unit Device Seismic Detector Storage Large Storage Unit Processor Targeting Computer Protection Light Armor Plating Weapon Katana Energy Gun Medium Laser Ballistic Gun Heavy Assault Rifle Launcher Rocket Launcher Slashing Weapon Katana Piercing Weapon Spear Build | -11 -10 -10 -9 -9 -9 -8 -8 ------- Run | Yrd Mat Min Mat Min Exi Min Mat Slots Evolved 4 | . . . 2 . . . 2 Power . | . . . . . . . . Propulsion 2 | . . . 1 . . . 1 Utility 2 | . . . 1 . . . 1 Weapon . | . . . . . . . . Parts Attached 37 | 7 4 1 7 7 1 2 8 Power 4 | 1 1 . 1 . . . 1 Engine 4 | 1 1 . 1 . . . 1 Core . | . . . . . . . . Reactor . | . . . . . . . . Propulsion 15 | 2 2 . 4 4 1 . 2 Treads 4 | 1 . . 1 2 . . . Leg 3 | . . . 3 . . . . Wheel 8 | 1 2 . . 2 1 . 2 Hover . | . . . . . . . . Flight . | . . . . . . . . Utility 10 | 2 1 . 1 1 . 2 3 Device 4 | 1 . . . . . 2 1 Storage 2 | 1 1 . . . . . . Processor 3 | . . . . 1 . . 2 Hackware . | . . . . . . . . Protection 1 | . . . 1 . . . . Artifact . | . . . . . . . . Weapon 8 | 2 . 1 1 2 . . 2 Energy Gun 2 | 1 . . 1 . . . . Energy Cannon . | . . . . . . . . Ballistic Gun 2 | 1 . 1 . . . . . Ballistic Cannon . | . . . . . . . . Launcher 2 | . . . . 1 . . 1 Special Weapon . | . . . . . . . . Impact Weapon . | . . . . . . . . Slashing Weapon 1 | . . . . 1 . . . Piercing Weapon 1 | . . . . . . . 1 Special Melee Weapon . | . . . . . . . . Unidentified Prototypes 1 | . . . 1 . . . . Parts Lost 15 | . . . . 2 . . 13 Power 2 | . . . . . . . 2 Propulsion 8 | . . . . 1 . . 7 Utility 3 | . . . . 1 . . 2 Weapon 2 | . . . . . . . 2 Highest Loss Streak 9 | . . . . 2 . . 9 To Critical Strikes 1 | . . . . 1 . . . Average Backups 11 | 2 5 11 12 14 14 13 13 Power . | . 1 1 1 1 1 1 . Propulsion 1 | 1 2 3 3 2 2 2 1 Utility 3 | . . 2 2 3 4 3 4 Weapon 5 | . 1 4 6 7 7 7 7 Tool/Special . | . . . . . . . . Unused Backups 21 | . . 1 3 . 1 . 16 Power 1 | . . . 1 . . . . Propulsion 1 | . . . 1 . . . . Utility 7 | . . . . . . . 7 Weapon 12 | . . 1 1 . 1 . 9 Tool/Special . | . . . . . . . . Average Slot Usage (%) 99 | . 99 100 99 99 100 100 98 Engine 10 | . 14 14 11 11 11 11 8 Treads 9 | . 14 14 10 8 . . 8 Leg 3 | . . . 17 15 . . . Wheel 19 | . 13 14 5 9 33 33 27 Device 14 | . 14 14 11 11 11 11 17 Storage 11 | . 14 14 11 11 11 11 9 Processor 5 | . . . . 5 11 11 8 Protection 1 | . . . 10 4 . . . Energy Gun 5 | . 14 14 11 7 . . . Ballistic Gun 7 | . 14 14 11 10 11 11 . Launcher 3 | . . . . . . . 8 Slashing Weapon 5 | . . . . 3 11 11 8 Peak Build Rating 28 | 7 7 9 22 22 18 19 28 Average Rating 16 | 4 6 8 17 19 16 18 21 On Entrance 12 | . 7 7 9 22 17 18 18 Avg Prop Armor Cover (%) 14 | 18 14 13 15 14 . . 15 Naked Turns . | . . . . . . . . Heaviest Build 40 | 14 29 29 39 40 35 36 39 Greatest Support 45 | 20 16 16 45 45 30 30 40 Greatest Overweight (x) 8 | . 1 1 2 3 1 1 8 Average Overweight (x) . | . . 1 . 1 1 1 . Largest Inventory Capacity 15 | 8 15 15 15 15 15 15 15 Average Capacity 14 | 7 12 15 15 15 15 15 15 Most Carried 15 | 4 8 14 15 15 15 15 15 Average Carried 12 | 2 5 11 12 14 14 14 14 Final Capacity 15 | 8 15 15 15 15 15 15 15 Final Carried 15 | 4 8 13 15 14 15 15 15 Class Distribution -------------------- 60% | Scavenger-Mutant 37% | Mutant Dominant Class ---------------- Mutant | -10/Materials Scavenger-Mutant | -10/Mines Mutant | -9/Materials Scavenger-Mutant | -9/Mines Scavenger-Mutant | -9/Exiles Scavenger-Mutant | -8/Mines Scavenger-Mutant | -8/Materials Resources | -11 -10 -10 -9 -9 -9 -8 -8 ----------- Run | Yrd Mat Min Mat Min Exi Min Mat Matter Collected 867 | 57 294 35 48 207 . 43 183 Remotely . | . . . . . . . . Salvage Created 1655 | 17 487 75 48 355 . . 673 Parts 118 | 2 30 6 3 33 . . 44 Haulers Intercepted 4 | . 1 . 1 . . . 2 Recyclers Shooed 3 | . 2 . . 1 . . . Parts Field Recycled . | . . . . . . . . Retrieved Matter . | . . . . . . . . Parts Self-Destructed . | . . . . . . . . Prevented . | . . . . . . . . Parts Restored . | . . . . . . . . Kills | -11 -10 -10 -9 -9 -9 -8 -8 ------- Run | Yrd Mat Min Mat Min Exi Min Mat Combat Hostiles Destroyed 34 | . 9 2 . 8 . . 15 Melee 8 | . . . . . . . 8 Guns 15 | . 9 2 . 4 . . . AOE 11 | . . . . 4 . . 7 Classes Destroyed 10 | 1 7 1 . 1 . . . Worker 1 | . 1 . . . . . . Builder 5 | . 1 . . 2 . . 2 Tunneler 3 | 1 . . . 2 . . . Hauler 4 | . 1 . 1 . . . 2 Recycler 3 | . 1 . . 1 . . 1 Watcher 1 | . 1 . . . . . . Swarmer 15 | . 3 1 . 4 . . 7 Grunt 15 | . 6 . . 2 . . 7 Duelist 2 | . . . . 2 . . . Sentry 2 | . . 1 . . . . 1 Best Kill Streak 5 | 1 3 1 1 5 . . 5 Combat Bots Only 5 | . 3 1 . 4 . . 5 Max Kills in Single Turn 3 | 1 1 1 1 2 . . 3 Gunslinging . | . . . . . . . . Exploded 3 | . . . . 2 . . 3 Melee 1 | . . . . . . . 1 Uniques/NPCs Destroyed . | . . . . . . . . Combat | -11 -10 -10 -9 -9 -9 -8 -8 -------- Run | Yrd Mat Min Mat Min Exi Min Mat Hostile Shots Fired 237 | . 45 13 2 42 . . 135 Missed 57 | . 11 4 . 9 . . 33 Hits 180 | . 34 9 2 33 . . 102 Melee 14 | . . . . 10 . . 4 Projectile 166 | . 34 9 2 23 . . 98 Critical Strikes 6 | . 1 . . 3 . . 2 Damage Taken 2624 | . 422 94 30 612 . . 1466 Core 736 | . 99 17 . 56 . . 564 Absorbed by Shields . | . . . . . . . . Core Remaining (%) 79 | 100 . 53 . . . 86 . Volleys Fired 105 | 6 45 10 2 36 . . 6 Largest 2 | 2 2 2 2 2 . . 1 Hottest 79 | 70 70 73 79 79 . . 33 Shots Fired 194 | 12 91 20 4 61 . . 6 Gun 183 | 12 91 20 4 56 . . . Cannon . | . . . . . . . . Launcher 11 | . . . . 5 . . 6 Special . | . . . . . . . . Kinetic 95 | 6 46 10 2 31 . . . Thermal 88 | 6 45 10 2 25 . . . Explosive 11 | . . . . 5 . . 6 Electromagnetic . | . . . . . . . . Robot Hit Streak 17 | 5 17 4 2 11 . . 2 Robot Miss Streak 4 | 1 2 4 1 4 . . 2 Penetration Max . | . . . . . . . . Secondary Targets 4 | . 2 1 . 1 . . . Max Gunslinging Chain 1 | . 1 1 . 1 . . . Shots Hit Robots 151 | 10 64 9 2 39 . 1 26 Core Hits 70 | 2 28 4 2 14 . . 20 Critical Kills 1 | . 1 . . . . . . Critical Parts Destroyed . | . . . . . . . . Critical Strikes 9 | 1 4 . . 3 . . 1 Burn 7 | 1 3 . . 3 . . . Destroy 1 | . 1 . . . . . . Sever 1 | . . . . . . . 1 Melee Attacks 28 | . . . . 1 . 1 26 Impact . | . . . . . . . . Slashing 18 | . . . . 1 . 1 16 Piercing 10 | . . . . . . . 10 Sneak Attacks 6 | . . . . 1 . 1 4 Combat Hostiles . | . . . . . . . . Follow-up Attacks 2 | . . . . . . . 2 Damage Inflicted 3202 | 106 679 109 29 879 . 68 1332 Guns 1490 | 106 679 109 29 567 . . . Cannons . | . . . . . . . . Explosions 729 | . . . . 256 . . 473 Melee 983 | . . . . 56 . 68 859 Ramming . | . . . . . . . . Kinetic 647 | 31 228 44 12 332 . . . Thermal 843 | 75 451 65 17 235 . . . Explosive 729 | . . . . 256 . . 473 Electromagnetic . | . . . . . . . . Impact . | . . . . . . . . Slashing 698 | . . . . 56 . 68 574 Piercing 285 | . . . . . . . 285 Highest Corruption 11 | . 2 2 . . . . 11 Average Corruption 1 | . 1 2 . . . . 3 Corruption Purged . | . . . . . . . . Corruption Blocked . | . . . . . . . . Effects 13 | . 8 5 . . . . . Message Errors 2 | . 2 . . . . . . Energy Discharges 4 | . 3 1 . . . . . Data Loss (minor) 5 | . 1 4 . . . . . Data Loss (major) 1 | . 1 . . . . . . Misfires 1 | . 1 . . . . . . Overload Shots . | . . . . . . . . Overflow Damage 163 | . . . . 39 . 28 96 Projectiles . | . . . . . . . . Explosions 65 | . . . . 13 . . 52 Melee 98 | . . . . 26 . 28 44 Knockbacks . | . . . . . . . . Impact . | . . . . . . . . Kinetic . | . . . . . . . . Secondary . | . . . . . . . . Self-Inflicted Damage 123 | . . . . 49 . . 74 Shots 3 | . . . . 2 . . 1 Rammed . | . . . . . . . . Targets Rammed . | . . . . . . . . Kicked . | . . . . . . . . Crushed . | . . . . . . . . Highest Temperature 357 | 60 198 45 42 357 . . 4 Average Temperature 70 | 29 55 19 22 117 . . 3 Received Heat Transfer 681 | . 195 9 9 108 . . 360 Siege Activations . | . . . . . . . . Martial Activations . | . . . . . . . . Shielding Activations . | . . . . . . . . Robots Disrupted . | . . . . . . . . Combat Hostiles . | . . . . . . . . Robots Corrupted . | . . . . . . . . Combat Hostiles . | . . . . . . . . Parts Fried . | . . . . . . . . Impact Corruptions . | . . . . . . . . Robots Melted . | . . . . . . . . Combat Hostiles . | . . . . . . . . Parts Melted 5 | 2 1 1 . 1 . . . Heat Transferred 2812 | 296 1554 185 37 740 . . . Parts Sabotaged . | . . . . . . . . Parts Stolen . | . . . . . . . . Parts Stripped . | . . . . . . . . Power Chain Reactions . | . . . . . . . . Alert | -11 -10 -10 -9 -9 -9 -8 -8 ------- Run | Yrd Mat Min Mat Min Exi Min Mat Maximum Alert Level . | . . . . . . . . Low Security (%) 100 | 100 100 100 100 100 . 100 100 Level 1 . | . . . . . . . . Level 2 . | . . . . . . . . Level 3 . | . . . . . . . . Level 4 . | . . . . . . . . Level 5 . | . . . . . . . . High Security . | . . . . . . . . Max Security . | . . . . . . . . Peak Influence 122 | 5 84 100 14 122 . . 119 Initial 14 | . . 4 14 . . . . Average 24 | 1 22 28 1 44 . . 22 Influence Increases 1232 | 5 295 214 8 257 . . 453 Destroy 0b10 Robot/C 760 | . 180 120 . 160 . . 300 Destroy 0b10 Robot/NC 85 | 5 25 . 5 25 . . 25 Destroy Leader 140 | . 44 20 2 30 . . 44 Allied During Kill 14 | . . 14 . . . . . Disable Machine 45 | . . 15 . . . . 30 Destroy Structure 83 | . 1 . 1 42 . . 39 Partial Spotted 15 | . . . . . . . 15 Lose Combat Pursuer 90 | . 45 45 . . . . . Influence Decreases 1175 | 5 282 189 46 236 21 . 396 Entered New Map 54 | . . 9 24 . 21 . . Time Decay 889 | 5 282 140 22 226 . . 214 Lost Part 120 | . . . . 10 . . 110 Lost Ally 40 | . . 40 . . . . . Purge Threat 72 | . . . . . . . 72 Squads Dispatched 6 | . 2 . . . . . 4 Investigation 1 | . . . . . . . 1 Extermination . | . . . . . . . . Reinforcement 5 | . 2 . . . . . 3 Assault . | . . . . . . . . Garrison . | . . . . . . . . Intercept . | . . . . . . . . Searches Triggered . | . . . . . . . . Construction Impeded . | . . . . . . . . Haulers Reinforced . | . . . . . . . . Active Scanning Responses . | . . . . . . . . Cargo Convoy Interrupts . | . . . . . . . . Stealth | -11 -10 -10 -9 -9 -9 -8 -8 --------- Run | Yrd Mat Min Mat Min Exi Min Mat Distress Signals 8 | . 1 . 1 . . . 6 Communications Jammed . | . . . . . . . . Distress Signals . | . . . . . . . . Times Spotted 74 | . 15 9 2 8 . . 40 Peak Tracking Total 8 | . 3 6 3 4 . . 8 Tactical Retreats 11 | . 2 1 . . . . 8 ECM-based Alert Blocks 14 | . . . . . . . 14 Traps | -11 -10 -10 -9 -9 -9 -8 -8 ------- Run | Yrd Mat Min Mat Min Exi Min Mat Traps Triggered 4 | . 3 . . . . . 1 Indirectly . | . . . . . . . . Trap Hack Attempts . | . . . . . . . . Triggered . | . . . . . . . . Disarmed . | . . . . . . . . Reprogrammed . | . . . . . . . . Reused . | . . . . . . . . Traps Extracted . | . . . . . . . . Installed . | . . . . . . . . Triggered . | . . . . . . . . Machines | -11 -10 -10 -9 -9 -9 -8 -8 ---------- Run | Yrd Mat Min Mat Min Exi Min Mat Machines Disabled 3 | . . 1 . . . . 2 Max in Single Turn 1 | . . . . . . . 1 Machines Repaired . | . . . . . . . . Machines Dismantled . | . . . . . . . . Machines Sabotaged . | . . . . . . . . Overloaded Fab Kills . | . . . . . . . . Hacking | -11 -10 -10 -9 -9 -9 -8 -8 --------- Run | Yrd Mat Min Mat Min Exi Min Mat Machines Accessed 9 | . 4 . . . 1 . 4 Terminals 8 | . 4 . . . . . 4 Fabricators . | . . . . . . . . Repair Stations . | . . . . . . . . Recycling Units . | . . . . . . . . Scanalyzers . | . . . . . . . . Garrison Access . | . . . . . . . . Total Hacks 18 | . 9 . . . 1 . 8 Successful 6 | . 1 . . . 1 . 4 Failed 12 | . 8 . . . . . 4 Catastrophic 4 | . 3 . . . . . 1 Database Lockouts . | . . . . . . . . Manual 4 | . 1 . . . 1 . 2 Terminals 17 | . 9 . . . . . 8 Fabricators . | . . . . . . . . Repair Stations . | . . . . . . . . Recycling Units . | . . . . . . . . Scanalyzers . | . . . . . . . . Garrison Access . | . . . . . . . . Terminal Hacks 6 | . 1 . . . 1 . 4 Robot Analysis 1 | . 1 . . . . . . Prototype ID Bank 1 | . . . . . . . 1 Emergency Access Points 1 | . . . . . . . 1 Unreport Threat 1 | . . . . . . . 1 Dispatch Records 1 | . . . . . . . 1 Proto ID Catalog 1 | . . . . . 1 . . Fabricator Hacks . | . . . . . . . . Repair Station Hacks . | . . . . . . . . Recycling Unit Hacks . | . . . . . . . . Scanalyzer . | . . . . . . . . Garrison Access Hacks . | . . . . . . . . Unauthorized Hacks . | . . . . . . . . Terminals . | . . . . . . . . Fabricators . | . . . . . . . . Repair Stations . | . . . . . . . . Recycling Units . | . . . . . . . . Scanalyzers . | . . . . . . . . Garrison Access . | . . . . . . . . Data Cores Recovered . | . . . . . . . . Used . | . . . . . . . . Hacking Detections 5 | . 3 . . . . . 2 Full Trace Events 1 | . . . . . . . 1 Feedback Events . | . . . . . . . . Feedback Blocked . | . . . . . . . . Robot Schematics Acquired . | . . . . . . . . Robots Built . | . . . . . . . . Authchips . | . . . . . . . . Time . | . . . . . . . . Total Robot Build Rating . | . . . . . . . . Part Schematics Acquired . | . . . . . . . . Parts Built . | . . . . . . . . Authchips . | . . . . . . . . Time . | . . . . . . . . Total Part Build Rating . | . . . . . . . . Part Studies Acquired . | . . . . . . . . Parts Repaired . | . . . . . . . . Time . | . . . . . . . . Parts Recycled . | . . . . . . . . Recycled Matter . | . . . . . . . . Retrieved Matter . | . . . . . . . . Retrieved Components . | . . . . . . . . Parts Scanalyzed . | . . . . . . . . Part Schematics Acquired . | . . . . . . . . Parts Damaged . | . . . . . . . . Bothacking | -11 -10 -10 -9 -9 -9 -8 -8 ------------ Run | Yrd Mat Min Mat Min Exi Min Mat Used RIF Installer . | . . . . . . . . Robots Hacked . | . . . . . . . . Non-combat . | . . . . . . . . Combat . | . . . . . . . . Robot Hacks Applied . | . . . . . . . . Relay Couplers Released . | . . . . . . . . Fabnet Peak Effective % . | . . . . . . . . Robots Rewired . | . . . . . . . . Allies Hacked . | . . . . . . . . Hacks Repelled . | . . . . . . . . Allies | -11 -10 -10 -9 -9 -9 -8 -8 -------- Run | Yrd Mat Min Mat Min Exi Min Mat Total Allies 3 | . . 3 . . . . . Largest Group 3 | . . 3 . . . . . Highest-Rated Group 40 | . . 40 . . . . . Highest-Rated Ally 16 | . . 16 . . . . . Total Orders . | . . . . . . . . Ally Attacks 19 | . . 19 . . . . . Total Damage 175 | . . 175 . . . . . Kills 4 | . . 4 . . . . . Allies Corrupted . | . . . . . . . . Allies Melted . | . . . . . . . . Intel | -11 -10 -10 -9 -9 -9 -8 -8 ------- Run | Yrd Mat Min Mat Min Exi Min Mat Active Infowar (turns) 4846 | 25 1048 462 238 735 210 30 2098 Seismic 2718 | 25 1048 462 238 735 210 . . ECM 2128 | . . . . . . 30 2098 Robot Analysis Total 1 | . 1 . . . . . . Derelict Logs Recovered 3 | . . 2 . 1 . . . Drone Launches . | . . . . . . . . Drone Recoveries . | . . . . . . . . Exploration | -11 -10 -10 -9 -9 -9 -8 -8 ------------- Run | Yrd Mat Min Mat Min Exi Min Mat Turns Passed 4985 | 90 1048 462 238 735 210 104 2098 Spaces Moved 2750 | 55 496 354 167 551 218 102 807 Core 7 | 1 . . . . . . 6 Treads 2 | 2 . . . . . . . Legs 309 | . . . 97 212 . . . Wheels 2432 | 52 496 354 70 339 218 102 801 Hover . | . . . . . . . . Flight . | . . . . . . . . Fastest Speed 50 | 50 100 115 115 95 95 95 80 Average Speed 104 | 101 108 115 124 111 95 95 92 Slowest Speed 450 | 160 115 115 260 190 95 95 450 Overloaded Moves . | . . . . . . . . Propulsion Burnouts . | . . . . . . . . Robots Hopped . | . . . . . . . . Potential Cave-ins . | . . . . . . . . Cave-ins Triggered . | . . . . . . . . Exploration Rate (%) 51 | 3 62 78 20 99 61 41 50 Regions Visited 7 Branch Regions 4 Pre-discovered Areas 2 | . . 1 . 1 . . . Known Exits Taken 1 | . . . 1 . . . . Unknown Exits Taken 6 | 1 1 1 . 1 1 1 . Scrap Searched 4 | . . 1 . 2 . 1 . Spaces Dug . | . . . . . . . . Terrain Destroyed 85 | . . . . 47 . . 38 Melee . | . . . . . . . . Projectile . | . . . . . . . . AOE 85 | . . . . 47 . . 38 Terrain Rammed . | . . . . . . . . Walls Destroyed . | . . . . . . . . Machines Disabled . | . . . . . . . . Actions | -11 -10 -10 -9 -9 -9 -8 -8 --------- Run | Yrd Mat Min Mat Min Exi Min Mat Total 4642 | 75 927 390 196 607 220 107 2120 Wait 1655 | 4 373 17 . 6 . 1 1254 Move 2743 | 54 495 353 166 550 217 101 807 Hop . | . . . . . . . . Pick Up 42 | 4 5 7 9 4 1 1 11 Fast Attach 13 | 7 . . 3 1 . . 2 Attach 11 | . 1 . 2 3 . . 5 Detach 5 | . 1 . 3 . . . 1 Swap 18 | . 3 1 2 4 1 2 5 Drop 25 | . 4 2 9 2 1 1 6 Fire 105 | 6 45 10 2 36 . . 6 Melee 25 | . . . . 1 . 1 23 Ram . | . . . . . . . . Kick . | . . . . . . . . Crush . | . . . . . . . . Escape Stasis . | . . . . . . . . Rewire . | . . . . . . . . Trap . | . . . . . . . . Miscellaneous . | . . . . . . . . Route ------- -11/Scrapyard -10/Materials (discovered 3 exits: [*Mat] / [*Min] / [*Sub]) -10/Mines -9/Materials (discovered 2 exits: *Min x2) -9/Mines (discovered 3 exits: *Mat x2 / *Exi) -9/Exiles -8/Mines -8/Materials (discovered 1 exit: [*Fac]) History --------- Turn | Location | Event 14 | -11/Scrapyard | Discovered new exit (range 15) 91 | -11/Scrapyard | Entered Materials 301 | -10/Materials | Build established: Mutant 343 | -10/Materials | Discovered new exit (range 14) 785 | -10/Materials | Discovered new exit (range 6) 1019 | -10/Materials | Discovered new exit (range 16) 1139 | -10/Materials | Entered Mines 1144 | -10/Mines | Assisted by bots powering up and referring to "LRC-V3" 1166 | -10/Mines | Received a Rocket Launcher from a helpful Derelict 1300 | -10/Mines | Joined a pair of Derelicts in attacking an 0b10 outpost 1543 | -10/Mines | Learned location of Zion (-6) 1588 | -10/Mines | Discovered new exit (range 12) 1601 | -10/Mines | Entered Materials 1601 | -9/Materials | Evolved 2 slots: Propulsion x1, Utility x1 1602 | -9/Materials | Identified exit to Mines 1640 | -9/Materials | Build established: Scavenger-Mutant 1839 | -9/Materials | Entered Mines 1860 | -9/Mines | Met a Derelict bent on vengeance 1983 | -9/Mines | Build established: Mutant 2035 | -9/Mines | Discovered new exit (range 14) 2134 | -9/Mines | Discovered new exit (range 9) 2570 | -9/Mines | Deemed a non-threat by the Exiles lab entrance 2570 | -9/Mines | Discovered new exit (range 5) 2574 | -9/Mines | Entered Exiles 2599 | -9/Exiles | Met 8R-AWN 2613 | -9/Exiles | Met EX-HEX 2642 | -9/Exiles | Met EX-BIN 2652 | -9/Exiles | Build established: Scavenger-Mutant 2652 | -9/Exiles | Aligned with FarCom system 2653 | -9/Exiles | Given EX-Vault access code 2679 | -9/Exiles | Opened EX-Vault 2692 | -9/Exiles | Found YOLO Cannon 2712 | -9/Exiles | Warned to stay clear of 0b10 Research branches 2742 | -9/Exiles | Met EX-DEC 2775 | -9/Exiles | Discovered new exit (range 11) 2784 | -9/Exiles | Left Exiles lab with YOLO Cannon 2784 | -9/Exiles | Entered Mines 2880 | -8/Mines | Discovered new exit (range 9) 2888 | -8/Mines | Entered Materials 2888 | -8/Materials | Evolved 2 slots: Propulsion x1, Utility x1 4142 | -8/Materials | Discovered new exit (range 9) 4961 | -8/Materials | System corruption reached 10% 4965 | -8/Materials | Core integrity fell below 50% 4982 | -8/Materials | Core integrity fell below 20% 4986 | -8/Materials | Destroyed by X-62 Marksman with Pulse Rifle Last Messages --------------- 04960_ System corrupted by crushing effect (+4). 04960_ System corrupted by crushing effect (+5). 04960_ Knocked back. 04960_ Deuterium Engine destroyed. 04960_ Slug penetrates B-36 Bruiser. 04961_ K-01 Serf collects debris. 04962_ G-47 Trooper destroyed. 04963_ Penetrated by Slug. 04964_ Slug penetrates Wall. 04964_ K-01 Serf collects debris. 04966_ Penetrated by Slug. 04968_ K-01 Serf collects debris. 04968_ Katana destroyed. 04968_ System corrupted by crushing effect (+1). 04969_ Spear destroyed. 04971_ K-01 Serf collects debris. 04973_ W-25 Informer sends out distress signal. 04975_ K-01 Serf collects debris. 04979_ Slug penetrates Wall. 04983_ Penetrated by Slug. Map ----- +----------------------------------------------------+ | ????????????????????????# #######+#### ![= ## | | ????????????????????????# " =|[= [%=! | | ????????????????????????# *% =[= | | ????????????????????????# ############### ## | | ????????????????????????## ###?????????????## ## | | ?????????????????????????# #????????????????# ## | | ???????????????????+#?####+######???????? + ## | | ??????????????????? #?# #???? # ## | | ????????????????### ### """ #?# """ """ # ## | | ???????????????## # """"" #???""" """?# ## | | ???????????????? #g """"" ### """ """?# ## | | ???????????????? T + """"" + / # ## | | ????????????????? # """ ### # ## | | ?????????????????=*! # #??????#?#### #? | | ?????????????#####%!*## #???????????## #? | | ?????????????#!! =[ #####+######????????????# #? | | ?????????????#] s#???# #?????????????????# #? | | ?????????????#!! #???# #?????????????????# #? | | ?????????????#!! #???#w#?????????????????# #? | | ?????????????# /] #???# #?????????????????# #? | | ?????????????# [[ != #???# #?????????????????# #? | | ?????????????#####%[ #???# #????????????????## ## | | ?????????????????#=* #???# #????????????????# # | | ?????????????????#%! #???# #????????????????# #| | | ????##############k%=#####h######+####??????# # | | ??? u ss=b@! #??# + | | ??? x x =!= #????????# # | | ??? ! #????????# # | | ????##########+### w##########+####????????# ## | | ?????????????????# #??????????????????????# #? | | ?????????????????# #??????????????????????# #? | | ?????????????????# + ?????????????????????# #? | | ?????????????????# # ????????????????????# #? | | ?????????????????+ # ???????????????????# #? | | ?????????????????# #? #??????############ #? | | ?????????????????#####?? #??????# ] ## ## | | ???????????????????????? #??????# = # *# | | ????????????????????????? #??????# # | | ??????????????????????????#??????# + | | ?????????????????????????????????# """ """ # | | ?????????????????????????????????# """ """ # # | | ?????????????????????????????????# """ """ ### # | | ?????????????????????????????????# #?# # | | ?????????????????????????????????###+#######?# # | | ???????????????????????????????????# #???????# # | | ???????????????????????????????????# #???????#[ # | | ??????????? ???????????????????????# #??????##=! # | | ???????? #################### ######## % | | ???????? | | ??????????# T | +----------------------------------------------------+ Best States ------------- Heat Dissipation 53 Energy Generation 14 Energy Capacity 275 Matter Stores 300 Matter Capacity 300 Sight Range 16 Terrain Scan Density 10 ECM Strength 1 Armor Coverage 150 Evasion (%) 55 Targeting Accuracy 6 Melee Accuracy 6 Recoil Reduction 2 Item Schematics ----------------- None Robot Schematics ------------------ None Fabricated ------------ Nothing Repaired ---------- Nothing Studied --------- None Alien Tech Used ----------------- None Achievements -------------- None Challenges ------------ None Game ------ Seed TeslaSmallOptics Manual? 0 Play Time 00:47:17 Cumulative 33.6 hours Start 2026.07.02 @ 18:39:17 End 2026.07.02 @ 22:11:04 Sessions 5 Manual Loads 0 Difficulty Rogue Special Mode None Game No. 48 Rogue 44 Adventurer 4 Explorer 0 Win Type - Total 0 Types 0/0/0/0/0/0/0/0/0/0 Lore% 10 Gallery% 14 Achievement% 15 Wizard Run 0 Options --------- Layout 2 ASCII 0 Keyboard 1 Movement Numpad Keybinds 0 Fullscreen 1 Font 24/Smallcaps Map View 50x44 Zoom Use 27% Tactical HUD 1 Map Filters NONE Filters NONE Steam 1 RUN: cec12b55-8428-4a97-be94-b12bf24b943d